bitfinex/quotes_ETHUSD_20230830
["timestamp","ask_amount","ask_price","bid_price","bid_amount"]
[1693403540940,0.101,1719.5,1719.4,25.54621465]
[1693403541139,1.0173483,1719.7,1719.4,39.15417465]
[1693403541376,1.0173483,1719.7,1719.6,8.088]
[1693403541682,1.0173483,1719.7,1719.6,37.70268065]
[1693403541881,1.0173483,1719.7,1719.6,42.35448372]
[1693403542175,1.0173483,1719.7,1719.6,40.37848372]
[1693403544844,1.0173483,1719.7,1719.6,20.4459]
[1693403549771,1.0173483,1719.7,1719.6,23.31938065]
[1693403551194,1.0173483,1719.7,1719.6,14.6306]
[1693403551349,1.0173483,1719.7,1719.6,20.4459]
[1693403552587,1.0173483,1719.7,1719.6,17.4459]
[1693403553150,1.0173483,1719.7,1719.6,11.6306]
[1693403553401,1.0173483,1719.7,1719.5,11.63083]
[1693403553611,1.0173483,1719.7,1719.6,11.6306]
[1693403553761,1.0173483,1719.7,1719.6,17.4459]
[1693403555780,1.0173483,1719.7,1719.6,11.6306]
[1693403557992,1.0173483,1719.7,1719.6,5.8153]
[1693403558252,1.0173483,1719.7,1719.5,11.63089]
[1693403558396,1.0173483,1719.7,1719.5,5.81538]
[1693403559745,1.70056013,1719.7,1719.5,5.81538]
[1693403559911,1.70056013,1719.7,1719.5,11.63102]
[1693403560113,1.0173483,1719.7,1719.5,17.44666]
[1693403560645,1.0173483,1719.7,1719.5,18.85666]
[1693403561055,1.0173483,1719.7,1719.5,17.44666]
[1693403567547,14.0574483,1719.7,1719.3,11.63239]
[1693403567754,14.0574483,1719.7,1719.4,5.81588]
[1693403568054,14.0574483,1719.7,1719.3,5.81612]
[1693403568055,7.22107483,1719.6,1719.3,5.81612]
[1693403568251,7.22107483,1719.6,1719.3,11.63233]
[1693403568551,1.40574483,1719.6,1719.3,11.63233]
[1693403569250,1.40574483,1719.6,1719.2,5.81659]
[1693403569251,1.41,1719.5,1719.2,5.81659]
[1693403569453,13.04167,1719.5,1719.2,5.81659]
[1693403569688,1.41,1719.3,1719.0,5.81718]
[1693403569899,7.22648,1719.3,1719.0,5.81718]
[1693403570064,13.04296,1719.3,1718.9,11.63491]
[1693403570267,21.45464,1719.3,1718.9,5.81745]
[1693403570578,21.45464,1719.3,1718.8,11.63573]
[1693403570780,5.81706,1719.1,1718.8,11.63573]
[1693403570982,11.63412,1719.1,1718.8,5.81786]
[1693403571577,5.81706,1719.1,1718.8,5.81786]
[1693403572470,5.81706,1719.1,1718.8,11.63587]
[1693403572674,7.5548234,1719.1,1718.8,11.63587]
[1693403573458,1.7377634,1719.1,1718.8,11.63587]
[1693403575799,7.5547934,1719.1,1718.8,11.63587]
[1693403577328,5.87348065,1719.0,1718.4,0.60510595]
[1693403577494,1.41,1718.5,1718.3,3.83454635]
[1693403577697,5.81936,1718.4,1718.3,3.83454635]
[1693403578019,12.94357,1718.4,1718.3,3.83454635]
[1693403578528,1.30485,1718.4,1718.3,9.65424635]
[1693403578680,8.08482,1718.6,1718.3,15.47394635]
[1693403579323,2.266,1718.6,1718.3,15.47394635]
[1693403580224,11.63652,1718.8,1718.3,21.29364635]
[1693403580409,13.85682,1718.8,1718.3,21.29364635]
[1693403582496,19.67516,1718.8,1718.3,15.47394635]
[1693403582731,1.967516,1718.7,1718.3,3.83454635]
[1693403583034,11.6375,1718.6,1718.3,3.83454635]
[1693403583393,17.45625,1718.6,1718.3,3.83454635]
[1693403584305,20.32973065,1718.6,1718.3,3.83454635]
[1693403588504,11.6375,1718.6,1718.3,9.65422635]
[1693403588709,5.81839,1718.7,1718.3,19.58033699]
[1693403589003,8.41447,1718.9,1718.4,1.977]
[1693403589004,11.63567,1718.9,1718.4,1.977]
[1693403589301,5.81777,1718.9,1718.5,13.6147]
[1693403589970,5.81777,1718.9,1718.5,11.6377]
[1693403590177,5.81777,1718.9,1718.5,13.58108]
[1693403590975,11.6356,1718.9,1718.5,13.58108]
[1693403592087,11.6356,1718.9,1718.5,19.4001]
[1693403592608,14.1291,1718.9,1718.5,19.4001]
[1693403592787,14.1291,1718.9,1718.5,17.45672]
[1693403592991,14.1291,1718.9,1718.5,11.6377]
[1693403593681,2.4935,1718.9,1718.5,17.45672]
[1693403593878,5.99330657,1719.3,1718.6,2.87348065]
[1693403594078,5.99330657,1719.3,1718.8,17.45391]
[1693403594079,2.4935,1719.2,1718.8,17.45391]
[1693403594424,2.4935,1719.2,1718.8,21.176301]
[1693403595476,5.81584,1719.5,1718.9,4.85048065]
[1693403595676,14.29302,1719.5,1719.0,19.42829]
[1693403595916,6.8324783,1719.7,1719.1,4.85048065]
[1693403596257,3.6786483,1719.7,1719.2,19.91118806]
[1693403596451,9.4936483,1719.7,1719.2,22.78466871]
[1693403596745,1.0173483,1719.7,1719.3,4.85048065]
[1693403596954,1.0173483,1719.7,1719.4,11.63182]
[1693403597253,6.8323283,1719.7,1719.4,11.63182]
[1693403597427,7.00467644,1719.7,1719.4,11.63182]
[1693403597748,7.00467644,1719.7,1719.4,13.376609]
[1693403597950,1.18969644,1719.7,1719.4,13.376609]
[1693403598153,1.0173483,1719.7,1719.4,16.25008965]
[1693403598351,1.0173483,1719.7,1719.5,1.977]
[1693403598557,1.0173483,1719.7,1719.6,17.4459]
[1693403599229,1.0173483,1719.7,1719.6,19.38819]
[1693403603768,1.0173483,1719.7,1719.6,17.4459]
[1693403603969,1.0173483,1719.7,1719.6,11.6306]
[1693403605674,5.6463183,1719.9,1719.6,11.6306]
[1693403605987,11.4608183,1719.9,1719.6,11.6306]
[1693403606442,5.6463183,1719.9,1719.6,11.6306]
[1693403607596,7.85048065,1719.8,1719.2,5.81642]
[1693403607748,19.42371,1719.6,1719.1,8.14476]
[1693403607952,20.00606117,1719.6,1719.1,2.32789]
[1693403608185,17.4481,1719.4,1719.1,2.32789]
[1693403608969,17.4481,1719.4,1719.0,5.81713]
[1693403609178,17.4481,1719.4,1719.0,11.63432]
[1693403609359,5.81602,1719.4,1719.0,17.45165]
[1693403610099,15.676111,1719.5,1719.0,17.45165]
[1693403610778,2.5649,1719.7,1719.1,3.35348065]
[1693403610779,8.37996,1719.7,1719.1,3.35348065]
[1693403610977,8.37996,1719.7,1719.2,17.44914]
[1693403610978,5.81531,1719.6,1719.2,17.44914]
[1693403611182,5.81531,1719.6,1719.2,20.32262065]
[1693403611497,5.81531,1719.6,1719.2,17.44914]
[1693403612098,11.63062,1719.6,1719.2,17.44914]
[1693403612413,19.446988,1719.6,1719.1,11.6337]
[1693403612555,19.446988,1719.6,1719.1,5.81684]
[1693403612757,22.32046865,1719.6,1719.1,11.63383]
[1693403613252,24.29746865,1719.6,1719.1,11.63383]
[1693403613456,2.42974686,1719.5,1719.1,11.63383]
[1693403613694,5.81604,1719.4,1719.1,11.63383]
[1693403616005,11.63208,1719.4,1719.1,11.63383]
[1693403616383,11.63208,1719.4,1719.1,5.81684]
[1693403616571,11.63208,1719.4,1719.1,11.63383]
[1693403616770,13.83654769,1719.4,1719.1,11.63383]
[1693403617566,13.83654769,1719.4,1719.1,5.81684]
[1693403617966,8.02050769,1719.4,1719.1,11.63383]
[1693403618199,7.98278,1719.5,1719.1,11.63383]
[1693403618405,2.1669,1719.5,1719.1,17.45082]
[1693403619724,7.98258,1719.5,1719.1,17.45082]
[1693403626633,13.79826,1719.5,1719.1,11.63383]
[1693403626843,1.379826,1719.4,1719.1,11.63383]
[1693403627021,2.1669,1719.5,1719.1,17.45082]
[1693403628210,8.37997,1719.7,1719.1,22.30130065]
[1693403628416,8.37997,1719.7,1719.2,1.977]
[1693403628744,2.2056,1719.8,1719.3,22.29900065]
[1693403628902,2.2056,1719.8,1719.5,17.44671]
[1693403630552,62.30325,1720.0,1719.5,17.44671]
[1693403634155,68.11727,1720.0,1719.5,17.44671]
[1693403634525,84.59572065,1720.0,1719.5,11.63114]
[1693403634745,5.74036337,1719.9,1719.5,11.63114]
[1693403634945,5.81469,1719.8,1719.5,11.63114]
[1693403636956,5.8145,1719.9,1719.5,17.44678]
[1693403640462,16.47906065,1719.9,1719.5,5.81557]
[1693403640665,5.81496,1719.7,1719.4,11.6316]
[1693403640861,5.81496,1719.7,1719.5,5.81563]
[1693403641092,5.81496,1719.7,1719.4,11.63152]
[1693403641300,5.81496,1719.7,1719.3,5.81625]
[1693403641301,17.44488,1719.7,1719.3,11.63235]
[1693403641699,11.62992,1719.7,1719.3,11.63235]
[1693403642000,11.62992,1719.7,1719.3,17.44867]
[1693403642001,5.81496,1719.7,1719.3,17.44867]
[1693403642200,4.6672,1719.8,1719.3,19.775175]
[1693403642363,5.81446,1719.9,1719.3,22.64865565]
[1693403642564,11.62886,1719.9,1719.4,2.87348065]
[1693403642764,13.81146,1719.9,1719.5,17.44657]
[1693403642966,7.997,1719.9,1719.5,17.44657]
[1693403643297,7.997,1719.9,1719.5,19.47857507]
[1693403643659,62.59815,1720.0,1719.5,19.47857507]
[1693403646164,64.80475,1720.0,1719.5,19.47857507]
[1693403646665,60.09765,1720.0,1719.5,22.35205572]
[1693403648086,60.09765,1720.0,1719.5,28.16769572]
[1693403648286,60.09765,1720.0,1719.6,10.27865064]
[1693403648563,60.09765,1720.0,1719.7,17.4447]
[1693403651102,60.09765,1720.0,1719.8,2.87348065]
[1693403651405,60.09765,1720.0,1719.9,17.44287]
[1693403655778,60.09765,1720.0,1719.9,11.62858]
[1693403656165,71.65196337,1720.0,1719.9,5.81429]
[1693403656680,77.46591337,1720.0,1719.6,11.63018]
[1693403657102,77.46591337,1720.0,1719.4,11.63166]
[1693403657103,1.977,1719.9,1719.4,11.63166]
[1693403657373,13.60658,1719.8,1719.4,11.63166]
[1693403657572,11.62958,1719.8,1719.4,11.63166]
[1693403657771,16.099792,1719.8,1719.4,11.63166]
[1693403658271,18.223892,1719.8,1719.4,17.44764]
[1693403658475,12.409102,1719.8,1719.4,17.44764]
[1693403658723,4.6522,1719.8,1719.4,17.44764]
[1693403659219,4.6522,1719.8,1719.4,20.32112065]
[1693403659518,60.09765,1720.0,1719.4,22.29812065]
[1693403659812,70.5446,1720.0,1719.4,22.29812065]
[1693403659998,82.1725,1720.0,1719.4,17.44764]
[1693403660203,5.81465,1719.8,1719.4,17.44764]
[1693403660606,7.93875,1719.8,1719.4,17.44764]
[1693403660816,2.1241,1719.8,1719.4,17.44764]
[1693403663903,68.4205,1720.0,1719.6,17.44539]
[1693403663904,62.60655,1720.0,1719.6,17.44539]
[1693403664139,64.87765,1720.0,1719.6,17.44539]
[1693403666503,64.87765,1720.0,1719.6,20.05883006]
[1693403669598,64.87765,1720.0,1719.6,17.44539]
[1693403669790,70.69161,1720.0,1719.6,17.44539]
[1693403671853,64.87765,1720.0,1719.6,17.44539]
[1693403673146,70.69163,1720.0,1719.6,17.44539]
[1693403674429,64.87765,1720.0,1719.6,17.44539]
[1693403674630,64.87765,1720.0,1719.7,1.744539]
[1693403674975,64.87765,1720.0,1719.8,11.62924]
[1693403675197,62.36875,1720.0,1719.8,11.62924]
[1693403675574,60.09765,1720.0,1719.8,11.62924]
[1693403675776,60.09765,1720.0,1719.8,20.31734065]
[1693403676099,60.09765,1720.0,1719.9,22.29335065]
[1693403676314,60.09765,1720.0,1719.9,25.10414772]
[1693403677583,60.09765,1720.0,1719.9,29.59451681]
[1693403677763,5.09765,1720.0,1719.9,29.59451681]
[1693403678120,5.09765,1720.0,1719.9,31.11052165]
[1693403679327,5.09765,1720.0,1719.9,31.110003]
[1693403679517,5.09765,1720.0,1719.9,29.59451681]
[1693403680242,0.0056343,1720.2,1720.0,0.50640211]
[1693403680386,0.101,1720.3,1720.0,0.50640211]
[1693403680387,0.101,1720.3,1720.1,50.28544769]
[1693403680583,0.101,1720.3,1720.2,14.15148386]
[1693403680788,0.101,1720.4,1720.3,3.0]
[1693403681026,0.101,1720.4,1720.3,29.90786923]
[1693403681326,0.101,1720.5,1720.3,33.83198714]
[1693403681527,0.101,1720.5,1720.4,7.36384974]
[1693403681704,0.101,1720.5,1720.4,24.80164974]
[1693403681900,0.101,1720.5,1720.4,28.52655755]
[1693403682523,0.101,1720.5,1720.4,29.11055755]
[1693403682845,0.101,1720.5,1720.4,31.92135462]
[1693403682989,0.101,1720.5,1720.4,31.92098943]
[1693403683331,0.101,1720.5,1720.4,31.92098618]
[1693403683529,0.101,1720.5,1720.4,31.92096858]
[1693403683688,0.101,1720.5,1720.4,34.92096858]
[1693403683890,0.101,1720.8,1720.4,34.92096858]
[1693403684095,0.101,1720.8,1720.6,1.977]
[1693403684426,0.101,1720.8,1720.7,26.11980065]
[1693403685198,0.101,1720.8,1720.7,17.43474]
[1693403685391,5.91225,1720.8,1720.6,5.81192]
[1693403685602,12.30559127,1720.8,1720.5,5.81211]
[1693403685802,12.30559127,1720.8,1720.5,5.81222]
[1693403685803,1.23055913,1720.7,1720.5,5.81222]
[1693403686131,7.04217913,1720.7,1720.4,6.044986]
[1693403686340,18.66537913,1720.7,1720.4,0.232586]
[1693403686521,0.58209127,1720.6,1720.2,5.81294]
[1693403686689,17.43753,1720.5,1720.0,7.39761451]
[1693403686891,2.32584427,1720.4,1720.0,7.39761451]
[1693403687120,6.39483127,1720.4,1720.0,19.02551451]
[1693403687633,0.58209127,1720.4,1720.0,19.02551451]
[1693403687795,6.39474127,1720.4,1720.0,19.02551451]
[1693403688129,11.62496,1720.5,1720.0,19.02551451]
[1693403688428,5.81247,1720.5,1720.0,19.02551451]
[1693403688729,14.21061,1720.6,1720.0,21.89899516]
[1693403689194,8.39839,1720.6,1720.0,21.89899516]
[1693403690826,8.39839,1720.6,1720.0,20.31510065]
[1693403691729,2.5864,1720.6,1720.0,22.29210065]
[1693403693432,2.5864,1720.6,1720.2,17.4393]
[1693403694598,8.39833,1720.6,1720.2,17.4393]
[1693403694927,14.21026,1720.6,1720.2,17.4393]
[1693403695332,22.89567065,1720.6,1720.2,5.8131]
[1693403695629,22.89567065,1720.6,1720.1,11.6269]
[1693403695630,21.99919,1720.6,1720.1,11.6269]
[1693403695839,21.99919,1720.6,1720.1,5.81344]
[1693403695995,11.62528,1720.4,1720.1,5.81344]
[1693403696408,2.2394,1720.5,1720.1,19.41766]
[1693403696936,2.2394,1720.5,1720.2,4.85048065]
[1693403697126,2.2394,1720.5,1720.3,17.43879]
[1693403700957,2.2394,1720.5,1720.3,5.81293]
[1693403701121,8.53427,1720.5,1720.2,11.6262]
[1693403701484,8.53427,1720.5,1720.2,5.81308]
[1693403701751,8.53427,1720.5,1720.2,11.62635]
[1693403702159,20.15885,1720.5,1720.1,5.81359]
[1693403702327,13.641465,1720.4,1720.1,5.81359]
[1693403702512,2.2394,1720.5,1720.1,17.44081]
[1693403703023,2.2394,1720.5,1720.2,2.87348065]
[1693403703219,2.2394,1720.5,1720.3,17.43879]
[1693403703728,2.2394,1720.5,1720.3,5.81293]
[1693403704438,8.05166,1720.5,1720.3,5.81291]
[1693403704639,9.696682,1720.5,1720.3,5.81291]
[1693403704836,3.884422,1720.5,1720.3,11.62584]
[1693403705126,2.2394,1720.5,1720.3,17.43877]
[1693403705578,2.2394,1720.5,1720.3,11.62584]
[1693403706088,2.2394,1720.5,1720.3,17.43877]
[1693403706239,2.2394,1720.5,1720.3,5.81291]
[1693403707053,2.2394,1720.5,1720.3,11.62584]
[1693403707383,2.2394,1720.5,1720.3,19.182668]
[1693403707753,2.2394,1720.5,1720.3,13.369738]
[1693403708081,2.2394,1720.5,1720.3,5.81291]
[1693403708581,2.2394,1720.5,1720.3,11.62584]
[1693403710750,2.2394,1720.5,1720.3,17.43877]
[1693403711987,2.2394,1720.5,1720.3,11.62584]
[1693403713903,2.2394,1720.5,1720.3,5.81291]
[1693403714106,8.53429,1720.5,1720.2,5.81298]
[1693403714311,20.15886,1720.5,1720.0,5.81374]
[1693403714608,20.15886,1720.5,1720.0,11.62769]
[1693403714959,14.29655,1720.5,1720.0,17.44164]
[1693403715164,1.429655,1720.4,1720.0,17.44164]
[1693403715373,13.055255,1720.4,1720.0,17.44164]
[1693403715912,7.242455,1720.4,1720.0,17.44164]
[1693403717061,7.242255,1720.4,1720.0,17.44164]
[1693403717498,1.429655,1720.4,1720.0,17.44164]
[1693403718501,13.81408,1720.5,1720.0,17.44164]
[1693403718661,2.1894,1720.5,1720.0,21.72412065]
[1693403718862,2.1894,1720.5,1720.2,17.4396]
[1693403719168,2.5864,1720.6,1720.2,20.31308065]
[1693403719361,2.5864,1720.6,1720.3,2.03130807]
[1693403719565,2.5864,1720.6,1720.4,11.6252]
[1693403720197,2.5864,1720.6,1720.4,5.8126]
[1693403720595,2.5864,1720.6,1720.4,11.6252]
[1693403722515,2.5864,1720.6,1720.4,5.8126]
[1693403723907,2.5864,1720.6,1720.4,11.6252]
[1693403724339,2.5864,1720.6,1720.4,5.8126]
[1693403724547,10.045524,1720.6,1720.4,5.8126]
[1693403724832,17.266484,1720.6,1720.3,5.81263]
[1693403725598,20.13996465,1720.6,1720.3,5.81263]
[1693403726383,1.409,1720.4,1720.0,6.42201949]
[1693403726583,1.409,1720.4,1720.0,5.81379]
[1693403726584,13.035,1720.3,1720.0,5.81379]
[1693403726811,1.3035,1720.2,1720.0,5.81379]
[1693403727023,14.2293,1720.3,1720.0,11.62774]
[1693403727333,2.6033,1720.3,1720.0,11.62774]
[1693403727535,2.6033,1720.3,1720.0,17.44169]
[1693403728400,2.6033,1720.3,1720.1,1.01026502]
[1693403728612,29.98,1720.6,1720.2,17.43981]
[1693403728818,2.6033,1720.5,1720.2,19.8661665]
[1693403731913,2.6033,1720.5,1720.3,0.22747661]
[1693403732121,2.6033,1720.5,1720.4,11.6252]
[1693403732322,3.25581444,1720.7,1720.4,17.4378]
[1693403732543,3.25581444,1720.7,1720.4,20.07295773]
[1693403733710,4.1606361,1720.7,1720.4,20.07295773]
[1693403733953,3.25581444,1720.7,1720.4,20.07295773]
[1693403734330,0.60321444,1720.6,1720.4,20.07295773]
[1693403735391,4.1606361,1720.7,1720.4,20.07295773]
[1693403735549,3.25581444,1720.7,1720.5,1.72516583]
[1693403735730,3.25581444,1720.7,1720.6,11.62384]
[1693403736247,3.25581444,1720.7,1720.6,5.81192]
[1693403736453,4.1606361,1720.7,1720.5,11.62427]
[1693403736855,4.1606361,1720.7,1720.5,5.81208]
[1693403737452,3.25581444,1720.7,1720.5,17.4366]
[1693403737751,3.25581444,1720.7,1720.5,19.761511]
[1693403741850,3.25581444,1720.7,1720.5,13.949251]
[1693403743391,3.25581444,1720.7,1720.5,19.761511]
[1693403744309,3.25581444,1720.7,1720.5,11.62434]
[1693403744600,3.25581444,1720.7,1720.5,5.81208]
[1693403744771,9.06741444,1720.7,1720.5,5.81208]
[1693403745414,3.25581444,1720.7,1720.5,5.81208]
[1693403746167,3.25581444,1720.7,1720.5,11.62434]
[1693403746562,3.25581444,1720.7,1720.6,0.21677625]
[1693403746760,3.25581444,1720.7,1720.6,6.02869625]
[1693403750842,4.1606361,1720.7,1720.6,0.21677625]
[1693403751003,5.8697246,1720.7,1720.6,0.21677625]
[1693403751203,5.26651016,1720.7,1720.6,0.21677625]
[1693403751538,3.26234089,1720.7,1720.6,0.21677625]
[1693403751709,2.6526,1720.7,1720.6,17.65253625]
[1693403751905,3.26234089,1720.7,1720.6,17.65253625]
[1693403752912,2.6526,1720.7,1720.6,17.65253625]
[1693403759465,2.6526,1720.7,1720.6,11.84061625]
[1693403762758,2.6526,1720.7,1720.6,6.02869625]
[1693403762963,3.03507102,1720.7,1720.6,6.02869625]
[1693403764088,3.64481191,1720.7,1720.6,6.02869625]
[1693403764511,28.04884792,1720.7,1720.0,1.51510827]
[1693403764791,11.626,1720.3,1720.0,5.81371]
[1693403765149,14.1342,1720.3,1720.0,5.81371]
[1693403765819,1.409,1720.2,1719.8,5.81451]
[1693403766002,5.81368,1720.1,1719.9,5.81426]
[1693403766185,0.581368,1720.0,1719.9,5.81426]
[1693403766584,0.581368,1720.0,1719.8,5.81451]
[1693403766980,6.395338,1720.0,1719.8,5.81451]
[1693403768330,6.395338,1720.0,1719.4,10.75578933]
[1693403768331,20.89673865,1720.0,1719.4,7.22488]
[1693403768533,4.96315452,1719.9,1719.4,5.81595]
[1693403768689,4.96315452,1719.9,1719.4,11.63193]
[1693403768690,1.409,1719.7,1719.4,11.63193]
[1693403768889,13.03928,1719.7,1719.4,11.63193]
[1693403769098,7.22371,1719.8,1719.4,17.44791]
[1693403769289,5.81498,1719.7,1719.4,11.63193]
[1693403769742,11.62996,1719.7,1719.3,11.63254]
[1693403770028,18.85394,1719.7,1719.2,6.42466949]
[1693403770185,18.85394,1719.7,1719.3,1.0106016]
[1693403770384,13.03896,1719.7,1719.3,12.6432316]
[1693403770582,13.03896,1719.7,1719.3,11.63263]
[1693403770986,15.14170444,1719.7,1719.3,11.63263]
[1693403771841,15.14170444,1719.7,1719.3,5.81631]
[1693403773524,9.32672444,1719.7,1719.3,5.81631]
[1693403773721,15.14170444,1719.7,1719.3,11.63263]
[1693403774133,15.14168444,1719.7,1719.3,11.63263]
[1693403774616,7.91770444,1719.7,1719.3,17.44895]
[1693403777013,13.73266444,1719.7,1719.3,17.44895]
[1693403777307,7.91770444,1719.7,1719.3,17.44895]
[1693403778241,5.81496,1719.7,1719.3,17.44895]
[1693403784459,2.64366739,1719.8,1719.3,17.44895]
[1693403784604,2.182,1719.8,1719.3,18.85795]
[1693403785539,2.5082,1719.9,1719.5,29.37388]
[1693403785788,2.4416,1720.1,1719.7,1.409]
[1693403785919,2.4416,1720.1,1719.8,17.44368]
[1693403790467,8.25521,1720.1,1719.8,11.62912]
[1693403791443,14.06882,1720.1,1719.8,5.81456]
[1693403791767,6.639611,1720.0,1719.8,5.81456]
[1693403792126,6.639611,1720.0,1719.6,11.6304]
[1693403792127,19.676651,1720.0,1719.6,11.6304]
[1693403792330,19.676651,1720.0,1719.5,5.8156]
[1693403792331,11.62924,1719.8,1719.5,11.63112]
[1693403792566,6.977914,1719.7,1719.5,5.81552]
[1693403792730,5.81499,1719.7,1719.5,5.81552]
[1693403792935,5.81499,1719.7,1719.4,11.63146]
[1693403793267,11.62998,1719.7,1719.4,5.81572]
[1693403794865,5.81499,1719.7,1719.4,11.6317]
[1693403795176,11.62995,1719.7,1719.4,11.6317]
[1693403795333,7.820107,1719.7,1719.4,11.6317]
[1693403795670,13.635067,1719.7,1719.4,5.81572]
[1693403795883,15.044067,1719.7,1719.3,5.81613]
[1693403796076,17.194667,1719.7,1719.3,5.81613]
[1693403796379,17.194667,1719.7,1719.3,11.63245]
[1693403796600,11.63128,1719.5,1719.2,5.81653]
[1693403797091,14.16078,1719.5,1719.2,11.63318]
[1693403797267,8.34514,1719.5,1719.2,11.63318]
[1693403798202,14.16078,1719.5,1719.2,5.81653]
[1693403798500,8.34514,1719.5,1719.2,5.81653]
[1693403798679,10.65561267,1719.5,1719.2,11.63318]
[1693403799252,16.47125267,1719.5,1719.1,6.42505949]
[1693403799452,16.47125267,1719.5,1719.1,11.63364]
[1693403799453,18.70015267,1719.5,1719.1,11.63364]
[1693403799653,24.51579267,1719.5,1719.1,5.81681]
[1693403799889,18.70015267,1719.5,1719.1,5.81699]
[1693403800093,1.87001527,1719.4,1719.1,11.63398]
[1693403800270,7.68604527,1719.4,1719.1,11.63398]
[1693403800870,13.50207527,1719.4,1719.0,12.24258949]
[1693403801063,13.50207527,1719.4,1719.1,1.01074055]
[1693403801260,19.31810527,1719.4,1719.1,1.01074055]
[1693403802174,13.50207527,1719.4,1719.1,12.64466055]
[1693403802510,7.68604527,1719.4,1719.1,11.63392]
[1693403803861,1.87001527,1719.4,1719.1,17.45091]
[1693403804064,1.87001527,1719.4,1719.2,1.01073049]
[1693403804361,1.87001527,1719.4,1719.3,5.81632]
[1693403804762,1.87001527,1719.4,1719.2,11.63287]
[1693403804996,7.68600527,1719.4,1719.2,5.81638]
[1693403805198,0.76860053,1719.3,1719.2,5.81638]
[1693403805366,11.79479074,1719.3,1719.0,7.33786428]
[1693403805564,7.38747074,1719.3,1719.1,1.01078294]
[1693403805871,13.20379074,1719.3,1719.1,1.01078294]
[1693403806368,11.79479074,1719.3,1719.1,1.01078294]
[1693403806592,6.99637907,1719.2,1719.0,0.60822949]
[1693403806791,12.81327907,1719.2,1719.0,1.61902064]
[1693403807205,6.99637907,1719.2,1719.0,7.43631064]
[1693403807369,12.81327907,1719.2,1719.1,1.01079115]
[1693403807571,15.48867907,1719.2,1719.0,1.01079115]
[1693403807972,1.54886791,1719.1,1719.0,1.01079115]
[1693403808172,1.54886791,1719.1,1718.9,0.60822949]
[1693403808173,13.18284791,1719.1,1718.9,1.61902064]
[1693403808573,14.59184791,1719.1,1718.9,1.01079115]
[1693403808877,14.59184791,1719.1,1718.9,6.82835115]
[1693403808878,2.95786791,1719.1,1718.9,6.82835115]
[1693403809190,8.77487791,1719.1,1719.0,1.01079115]
[1693403809393,7.36587791,1719.1,1719.0,1.01079115]
[1693403809604,1.54886791,1719.1,1719.0,6.82812115]
[1693403810067,7.36585791,1719.1,1719.0,1.01079115]
[1693403810268,1.54886791,1719.1,1719.0,1.01079115]
[1693403810571,13.18284791,1719.1,1719.0,1.01079115]
[1693403810798,13.18284791,1719.1,1718.9,1.61902064]
[1693403811005,1.31828479,1719.0,1718.9,1.61902064]
[1693403811239,7.13561479,1719.0,1718.9,1.61902064]
[1693403814423,7.13561479,1719.0,1718.9,1.01079115]
[1693403815039,18.77027479,1719.0,1718.9,1.01079115]
[1693403815239,18.77027479,1719.0,1718.8,1.61902064]
[1693403815484,18.77027479,1719.0,1718.9,1.01097915]
[1693403816134,18.77027479,1719.0,1718.8,1.61972145]
[1693403816745,18.77027479,1719.0,1718.7,1.62185575]
[1693403816939,18.77027479,1719.0,1718.8,1.61971259]
[1693403817142,18.77027479,1719.0,1718.8,1.01097029]
[1693403817339,5.81733,1719.0,1718.8,5.81797]
[1693403817642,2.6754,1719.2,1718.9,1.01090689]
[1693403817643,8.49212,1719.2,1718.9,1.01090689]
[1693403817942,3.1395131,1719.2,1719.0,5.81733]
[1693403818147,3.1395131,1719.2,1719.0,11.63466]
[1693403818362,0.4641131,1719.2,1719.0,11.63466]
[1693403818671,5.81647,1719.3,1719.0,13.58164123]
[1693403819156,11.63292,1719.3,1719.0,13.58164123]
[1693403819363,11.63292,1719.3,1719.0,5.81733]
[1693403820463,5.81645,1719.3,1719.0,11.63466]
[1693403820983,2.6339,1719.4,1719.0,17.45199]
[1693403821184,2.6339,1719.4,1719.2,11.6333]
[1693403821889,13.7713,1719.6,1719.2,17.44995]
[1693403822136,8.41179,1719.6,1719.2,17.44995]
[1693403822445,2.5963,1719.6,1719.2,18.85895]
[1693403824262,8.41162,1719.6,1719.2,18.85895]
[1693403824445,8.88901365,1719.6,1719.2,21.38741823]
[1693403824858,8.41162,1719.6,1719.2,21.38741823]
[1693403825489,8.41162,1719.6,1719.2,19.97841823]
[1693403825711,14.22694,1719.6,1719.2,11.6333]
[1693403826132,14.22694,1719.6,1719.2,5.81665]
[1693403826133,22.91574065,1719.6,1719.2,5.81665]
[1693403826274,1.409,1719.5,1719.0,5.81708]
[1693403826636,21.73083065,1719.4,1718.9,12.2437823]
[1693403826783,5.81671,1719.2,1718.9,12.2437823]
[1693403826987,11.63298,1719.3,1718.9,18.0614523]
[1693403827223,5.81646,1719.3,1718.9,18.0614523]
[1693403827529,2.26,1719.4,1718.9,19.4704523]
[1693403827701,5.81572,1719.5,1718.9,19.4704523]
[1693403827702,5.81572,1719.5,1719.0,1.409]
[1693403828031,5.81572,1719.5,1719.1,17.45053]
[1693403828330,5.81572,1719.5,1719.1,19.336483]
[1693403828878,5.81573,1719.5,1719.1,19.336483]
[1693403830065,14.22717,1719.6,1719.1,19.336483]
[1693403830624,8.87290945,1719.6,1719.1,19.336483]
[1693403831065,8.87290945,1719.6,1719.1,20.745483]
[1693403831263,8.87290945,1719.6,1719.3,11.6325]
[1693403831692,8.87290945,1719.6,1719.2,5.81645]
[1693403831693,11.7463901,1719.6,1719.2,5.81645]
[1693403831982,24.7862401,1719.6,1719.1,11.63368]
[1693403832193,2.87348065,1719.5,1719.0,5.8172]
[1693403832346,17.44834,1719.4,1719.0,5.8172]
[1693403832547,19.69492207,1719.4,1719.0,5.8172]
[1693403833641,13.87877207,1719.4,1719.0,17.45186]
[1693403835187,11.63219,1719.4,1719.0,17.45186]
[1693403835390,5.81604,1719.4,1719.0,17.45186]
[1693403837286,7.95968,1719.5,1719.1,1.01077972]
[1693403837487,8.87292945,1719.6,1719.2,17.44977]